fUSD/lending_fUSD_20250618
["ID","MTS","AMOUNT","RATE_DAILY","PERIOD"]
[366373882,1750219839287,-490.0,0.00016438,2]
[366373885,1750219839297,-490.0,0.00016438,2]
[366373887,1750219839307,-490.0,0.00016438,2]
[366373889,1750219839318,-1498.29,0.00016438,2]
[366373891,1750219839327,-490.0,0.00016438,2]
[366373893,1750219839337,-490.0,0.00016438,2]
[366373894,1750219839347,-490.0,0.00016438,2]
[366373897,1750219839357,-490.0,0.00016438,2]
[366373899,1750219839367,-923.47,0.00016438,2]
[366373901,1750219839377,-490.0,0.00016438,2]
[366373902,1750219839386,-490.0,0.00016438,2]
[366373904,1750219839395,-490.0,0.00016438,2]
[366373906,1750219839405,-1096.18,0.00016438,2]
[366373909,1750219839415,-791.61,0.00016438,2]
[366373911,1750219839425,-490.0,0.00016438,2]
[366373913,1750219839434,-606.2,0.00016438,2]
[366373915,1750219839443,-490.0,0.00016438,2]
[366373917,1750219839453,-490.0,0.00016438,2]
[366373919,1750219839462,-500.38105824,0.00016438,2]
[366373921,1750219839472,-388.19998098,0.00016438,2]
[366373923,1750219839481,-490.0,0.00016438,2]
[366373925,1750219839490,-490.0,0.00016438,2]
[366373927,1750219839500,-677.0,0.00016438,2]
[366373929,1750219839510,-354.45197649,0.00016438,2]
[366373931,1750219839519,-490.0,0.00016438,2]
[366373933,1750219839530,-490.0,0.00016438,2]
[366373935,1750219839539,-490.0,0.00016438,2]
[366373937,1750219839549,-493.99,0.00016438,2]
[366373939,1750219839559,-490.0,0.00016438,2]
[366373941,1750219839568,-657.73,0.00016438,2]
[366373943,1750219839578,-959.0,0.00016438,2]
[366373945,1750219839587,-490.0,0.00016438,2]
[366373947,1750219839596,-1085.35,0.00016438,2]
[366373949,1750219839606,-490.0,0.00016438,2]
[366373951,1750219839615,-668.67,0.00016438,2]
[366373953,1750219839625,-1641.34,0.00016438,2]
[366373955,1750219839634,-826.71,0.00016438,2]
[366373957,1750219839643,-490.0,0.00016438,2]
[366373959,1750219839653,-490.0,0.00016438,2]
[366373961,1750219839662,-581.52,0.00016438,2]
[366373964,1750219839671,-490.0,0.00016438,2]
[366373967,1750219839681,-679.08,0.00016438,2]
[366373970,1750219839689,-490.0,0.00016438,2]
[366373973,1750219839698,-490.0,0.00016438,2]
[366373976,1750219839708,-490.0,0.00016438,2]
[366373979,1750219839718,-704.99,0.00016438,2]
[366373982,1750219839729,-490.0,0.00016438,2]
[366373985,1750219839739,-1154.79,0.00016438,2]
[366373988,1750219839748,-490.0,0.00016438,2]
[366373991,1750219839758,-490.0,0.00016438,2]
[366373994,1750219839769,-490.0,0.00016438,2]
[366373997,1750219839779,-797.49,0.00016438,2]
[366373999,1750219839788,-490.0,0.00016438,2]
[366374002,1750219839797,-490.0,0.00016438,2]
[366374005,1750219839808,-810.13,0.00016438,2]
[366374008,1750219839818,-501.17531761,0.00016438,2]
[366374011,1750219839827,-490.0,0.00016438,2]
[366374014,1750219839837,-1247.03,0.00016438,2]
[366374017,1750219839847,-498.31781101,0.00016438,2]
[366374020,1750219839857,-490.0,0.00016438,2]
[366374022,1750219839866,-636.21,0.00016438,2]
[366374025,1750219839876,-490.0,0.00016438,2]
[366374028,1750219839885,-490.0,0.00016438,2]
[366374031,1750219839896,-497.82182013,0.00016438,2]
[366374034,1750219839906,-490.0,0.00016438,2]
[366374037,1750219839916,-942.77,0.00016438,2]
[366374041,1750219839925,-1208.52,0.00016438,2]
[366374044,1750219839935,-545.07,0.00016438,2]
[366374047,1750219839945,-490.0,0.00016438,2]
[366374050,1750219839954,-538.89,0.00016438,2]
[366374053,1750219839964,-490.0,0.00016438,2]
[366374056,1750219839973,-490.0,0.00016438,2]
[366374058,1750219839984,-490.0,0.00016438,2]
[366374061,1750219839993,-680.48,0.00016438,2]
[366374064,1750219840003,-490.0,0.00016438,2]
[366374067,1750219840012,-1033.96,0.00016438,2]
[366374069,1750219840022,-490.0,0.00016438,2]
[366374072,1750219840032,-1289.15,0.00016438,2]
[366374075,1750219840041,-490.0,0.00016438,2]
[366374077,1750219840050,-704.44,0.00016438,2]
[366374080,1750219840059,-490.0,0.00016438,2]
[366374082,1750219840069,-817.9,0.00016438,2]
[366374084,1750219840078,-1087.91,0.00016438,2]
[366374086,1750219840087,-490.0,0.00016438,2]
[366374089,1750219840097,-676.11,0.00016438,2]
[366374092,1750219840107,-551.32,0.00016438,2]
[366374095,1750219840116,-490.0,0.00016438,2]
[366374098,1750219840126,-490.00928347,0.00016438,2]
[366374101,1750219840135,-490.0,0.00016438,2]
[366374104,1750219840145,-268.77632016,0.00016438,2]
[366374107,1750219840155,-490.0,0.00016438,2]
[366374108,1750219840164,-490.0,0.00016438,2]
[366374110,1750219840174,-490.0,0.00016438,2]
[366374112,1750219840184,-490.0,0.00016438,2]
[366374114,1750219840194,-490.0,0.00016438,2]
[366374116,1750219840204,-491.18,0.00016438,2]
[366374118,1750219840214,-1115.52,0.00016438,2]
[366374120,1750219840224,-490.0,0.00016438,2]
[366374122,1750219840234,-490.0,0.00016438,2]
[366374124,1750219840243,-495.81,0.00016438,2]
[366374125,1750219840253,-490.0,0.00016438,2]
[366374127,1750219840263,-490.0,0.00016438,2]
[366374129,1750219840273,-289.21,0.00016438,2]
[366374131,1750219840283,-490.0,0.00016438,2]
[366374134,1750219840293,-496.99428798,0.00016438,2]
[366374137,1750219840303,-490.0,0.00016438,2]
[366374140,1750219840313,-490.0,0.00016438,2]
[366374144,1750219840324,-490.0,0.00016438,2]
[366374147,1750219840334,-490.0,0.00016438,2]
[366374149,1750219840344,-490.0,0.00016438,2]
[366374152,1750219840354,-490.0,0.00016438,2]
[366374155,1750219840363,-539.19,0.00016438,2]
[366374158,1750219840373,-632.96,0.00016438,2]
[366374161,1750219840382,-490.0,0.00016438,2]
[366374164,1750219840393,-490.0,0.00016438,2]
[366374166,1750219840402,-490.0,0.00016438,2]
[366374169,1750219840412,-1078.26,0.00016438,2]
[366374172,1750219840422,-490.0,0.00016438,2]
[366374175,1750219840434,-619.24,0.00016438,2]
[366374178,1750219840443,-490.0,0.00016438,2]
[366374180,1750219840454,-1013.14,0.00016438,2]
[366374182,1750219840465,-490.0,0.00016438,2]
[366374184,1750219840475,-490.0,0.00016438,2]
[366374186,1750219840485,-490.0,0.00016438,2]
[366374188,1750219840496,-620.41,0.00016438,2]
[366374190,1750219840505,-490.0,0.00016438,2]
[366374193,1750219840515,-300.0,0.00016438,2]
[366374195,1750219840525,-696.28,0.00016438,2]
[366374197,1750219840534,-884.55,0.00016438,2]
[366374199,1750219840545,-490.0,0.00016438,2]
[366374202,1750219840555,-490.0,0.00016438,2]
[366374204,1750219840565,-978.75,0.00016438,2]
[366374207,1750219840574,-917.1,0.00016438,2]
[366374210,1750219840584,-490.0,0.00016438,2]
[366374213,1750219840594,-490.0,0.00016438,2]
[366374216,1750219840604,-490.0,0.00016438,2]
[366374219,1750219840613,-698.59,0.00016438,2]
[366374221,1750219840623,-749.72,0.00016438,2]
[366374223,1750219840632,-490.0,0.00016438,2]
[366374226,1750219840642,-490.0,0.00016438,2]
[366374228,1750219840652,-490.0,0.00016438,2]
[366374230,1750219840662,-490.0,0.00016438,2]
[366374232,1750219840671,-496.35142104,0.00016438,2]
[366374234,1750219840681,-809.38,0.00016438,2]
[366374236,1750219840691,-611.98,0.00016438,2]
[366374238,1750219840700,-490.0,0.00016438,2]
[366374240,1750219840710,-490.0,0.00016438,2]
[366374242,1750219840720,-1434.56,0.00016438,2]
[366374245,1750219840731,-490.0,0.00016438,2]
[366374247,1750219840741,-490.0,0.00016438,2]
[366374249,1750219840750,-490.0,0.00016438,2]
[366374251,1750219840760,-490.0,0.00016438,2]
[366374253,1750219840771,-490.0,0.00016438,2]
[366374255,1750219840781,-646.25,0.00016438,2]
[366374257,1750219840791,-490.0,0.00016438,2]
[366374259,1750219840804,-490.0,0.00016438,2]
[366374261,1750219840814,-522.81,0.00016438,2]
[366374263,1750219840824,-733.24,0.00016438,2]
[366374265,1750219840833,-627.62,0.00016438,2]
[366374267,1750219840843,-1268.82,0.00016438,2]
[366374269,1750219840852,-848.35,0.00016438,2]
[366374271,1750219840862,-1756.93,0.00016438,2]
[366374273,1750219840872,-1483.43,0.00016438,2]
[366374275,1750219840881,-490.0,0.00016438,2]
[366374277,1750219840891,-490.0,0.00016438,2]
[366374279,1750219840901,-1754.88,0.00016438,2]
[366374281,1750219840910,-553.97,0.00016438,2]
[366374283,1750219840920,-490.0,0.00016438,2]
[366374285,1750219840929,-490.0,0.00016438,2]
[366374287,1750219840938,-492.15803661,0.00016438,2]
[366374316,1750219841196,-490.0,0.00016438,2]
[366374318,1750219841210,-490.0,0.00016438,2]
[366374320,1750219841219,-490.0,0.00016438,2]
[366374322,1750219841229,-785.51,0.00016438,2]
[366374324,1750219841237,-490.0,0.00016438,2]
[366374326,1750219841246,-490.0,0.00016438,2]
[366374328,1750219841256,-490.0,0.00016438,2]
[366374330,1750219841266,-774.68,0.00016438,2]
[366374332,1750219841275,-490.0,0.00016438,2]
[366374334,1750219841284,-1119.83,0.00016438,2]
[366374336,1750219841293,-490.0,0.00016438,2]
[366374338,1750219841303,-591.91,0.00016438,2]
[366374340,1750219841313,-490.0,0.00016438,2]
[366374342,1750219841322,-784.39,0.00016438,2]
[366374343,1750219841336,-577.1,0.00016438,2]
[366374344,1750219841345,-490.0,0.00016438,2]
[366374345,1750219841355,-490.0,0.00016438,2]
[366374346,1750219841364,-381.89033912,0.00016438,2]
[366374348,1750219841373,-935.27,0.00016438,2]
[366374350,1750219841383,-490.0,0.00016438,2]
[366374352,1750219841393,-490.0,0.00016438,2]
[366374354,1750219841403,-437.19125681,0.00016438,2]
[366374356,1750219841412,-1293.32,0.00016438,2]
[366374358,1750219841422,-490.0,0.00016438,2]
[366374360,1750219841431,-490.0,0.00016438,2]
[366374362,1750219841441,-490.0,0.00016438,2]
[366374364,1750219841451,-490.0,0.00016438,2]
[366374366,1750219841460,-1082.29,0.00016438,2]
[366374368,1750219841470,-490.0,0.00016438,2]
[366374370,1750219841480,-490.0,0.00016438,2]
[366374372,1750219841490,-490.0,0.00016438,2]
[366374374,1750219841499,-897.18,0.00016438,2]
[366374376,1750219841509,-1160.83,0.00016438,2]
[366374378,1750219841519,-490.0,0.00016438,2]
[366374380,1750219841528,-683.62,0.00016438,2]
[366374382,1750219841538,-490.0,0.00016438,2]
[366374384,1750219841548,-490.0,0.00016438,2]
[366374386,1750219841557,-614.22,0.00016438,2]
[366374388,1750219841566,-490.0,0.00016438,2]
[366374390,1750219841576,-490.0,0.00016438,2]
[366374392,1750219841586,-490.0,0.00016438,2]
[366374394,1750219841595,-1549.11,0.00016438,2]
[366374396,1750219841605,-490.0,0.00016438,2]
[366374398,1750219841615,-490.0,0.00016438,2]
[366374400,1750219841626,-490.0,0.00016438,2]
[366374402,1750219841635,-490.0,0.00016438,2]
[366374404,1750219841645,-534.42,0.00016438,2]
[366374406,1750219841655,-709.59,0.00016438,2]
[366374408,1750219841664,-490.0,0.00016438,2]
[366374410,1750219841674,-524.6,0.00016438,2]
[366374412,1750219841683,-490.0,0.00016438,2]
[366374414,1750219841693,-490.0,0.00016438,2]
[366374416,1750219841703,-490.0,0.00016438,2]
[366374418,1750219841712,-490.0,0.00016438,2]
[366374420,1750219841726,-490.0,0.00016438,2]
[366374422,1750219841736,-620.64,0.00016438,2]
[366374424,1750219841747,-495.42,0.00016438,2]
[366374426,1750219841756,-1658.57,0.00016438,2]
[366374428,1750219841767,-628.17,0.00016438,2]
[366374431,1750219841777,-570.41,0.00016438,2]
[366374433,1750219841786,-1050.39,0.00016438,2]
[366374435,1750219841796,-699.89,0.00016438,2]
[366374437,1750219841806,-490.0,0.00016438,2]
[366374439,1750219841816,-546.02520307,0.00016438,2]
[366374441,1750219841825,-2019.49,0.00016438,2]
[366374442,1750219841835,-164.4136507,0.00016438,2]
[366374444,1750219841845,-656.38,0.00016438,2]
[366374446,1750219841854,-1101.94,0.00016438,2]
[366374447,1750219841864,-1530.42,0.00016438,2]
[366374449,1750219841874,-520.95,0.00016438,2]
[366374451,1750219841883,-490.0,0.00016438,2]
[366374452,1750219841893,-490.0,0.00016438,2]
[366374453,1750219841902,-1432.15,0.00016438,2]
[366374454,1750219841912,-1927.2,0.00016438,2]
[366374455,1750219841921,-490.0,0.00016438,2]
[366374456,1750219841931,-620.19,0.00016438,2]
[366374457,1750219841940,-500.33,0.00016438,2]
[366374458,1750219841950,-490.0,0.00016438,2]
[366374459,1750219841960,-490.0,0.00016438,2]
[366374460,1750219841970,-490.0,0.00016438,2]
[366374461,1750219841979,-490.0,0.00016438,2]
[366374462,1750219841989,-490.0,0.00016438,2]
[366374463,1750219841999,-602.23145944,0.00016438,2]
[366374464,1750219842009,-1133.62,0.00016438,2]
[366374465,1750219842019,-751.51,0.00016438,2]
[366374466,1750219842029,-490.0,0.00016438,2]
[366374467,1750219842038,-490.0,0.00016438,2]
[366374468,1750219842048,-490.0,0.00016438,2]
[366374469,1750219842057,-490.0,0.00016438,2]
[366374470,1750219842067,-490.0,0.00016438,2]
[366374471,1750219842076,-2648.9,0.00016438,2]
[366374472,1750219842086,-490.0,0.00016438,2]
[366374473,1750219842095,-2230.47,0.00016438,2]
[366374474,1750219842105,-490.0,0.00016438,2]
[366374475,1750219842114,-490.0,0.00016438,2]
[366374476,1750219842125,-791.03,0.00016438,2]
[366374477,1750219842135,-490.0,0.00016438,2]
[366374478,1750219842145,-490.0,0.00016438,2]
[366374479,1750219842156,-490.0,0.00016438,2]
[366374480,1750219842166,-717.4,0.00016438,2]
[366374481,1750219842176,-490.0,0.00016438,2]
[366374482,1750219842186,-490.0,0.00016438,2]
[366374483,1750219842196,-490.0,0.00016438,2]
[366374484,1750219842206,-490.0,0.00016438,2]
[366374485,1750219842215,-490.0,0.00016438,2]
[366374486,1750219842225,-490.0,0.00016438,2]
[366374487,1750219842235,-490.0,0.00016438,2]
[366374488,1750219842245,-490.0,0.00016438,2]
[366374489,1750219842254,-490.0,0.00016438,2]
[366374490,1750219842264,-2495.95,0.00016438,2]
[366374491,1750219842273,-490.0,0.00016438,2]
[366374492,1750219842283,-490.0,0.00016438,2]
[366374493,1750219842293,-508.56,0.00016438,2]
[366374494,1750219842303,-490.0,0.00016438,2]
[366374495,1750219842312,-685.14,0.00016438,2]
[366374496,1750219842322,-490.0,0.00016438,2]
[366374497,1750219842332,-490.0,0.00016438,2]
[366374498,1750219842342,-490.0,0.00016438,2]
[366374499,1750219842352,-490.0,0.00016438,2]
[366374500,1750219842361,-603.79,0.00016438,2]
[366374501,1750219842371,-490.0,0.00016438,2]
[366374502,1750219842381,-867.73,0.00016438,2]
[366374503,1750219842391,-490.0,0.00016438,2]
[366374504,1750219842400,-651.29,0.00016438,2]
[366374505,1750219842411,-1680.55,0.00016438,2]
[366374506,1750219842420,-1523.96,0.00016438,2]
[366374507,1750219842430,-490.0,0.00016438,2]
[366374508,1750219842440,-508.39,0.00016438,2]
[366374509,1750219842450,-490.0,0.00016438,2]
[366374510,1750219842460,-490.0,0.00016438,2]
[366374511,1750219842470,-490.0,0.00016438,2]
[366374512,1750219842480,-490.0,0.00016438,2]
[366374513,1750219842489,-490.0,0.00016438,2]
[366374514,1750219842499,-490.0,0.00016438,2]
[366374515,1750219842510,-570.48380333,0.00016438,2]
[366374516,1750219842519,-710.89,0.00016438,2]
[366374517,1750219842529,-1053.54,0.00016438,2]
[366374518,1750219842538,-1307.08,0.00016438,2]
[366374519,1750219842548,-630.71,0.00016438,2]
[366374520,1750219842558,-490.0,0.00016438,2]
[366374521,1750219842567,-490.0,0.00016438,2]
[366374522,1750219842576,-1281.69,0.00016438,2]
[366374523,1750219842587,-490.0,0.00016438,2]
[366374524,1750219842596,-168.94813496,0.00016438,2]
[366374525,1750219842606,-409.14129119,0.00016438,2]
[366374526,1750219842615,-2017.0,0.00016438,2]
[366374527,1750219842625,-490.0,0.00016438,2]
[366374528,1750219842634,-606.52,0.00016438,2]
[366374529,1750219842643,-490.0,0.00016438,2]
[366374530,1750219842653,-490.0,0.00016438,2]
[366374531,1750219842663,-2019.24,0.00016438,2]
[366374532,1750219842673,-490.0,0.00016438,2]
[366374533,1750219842683,-490.0,0.00016438,2]
[366374534,1750219842692,-490.0,0.00016438,2]
[366374535,1750219842701,-490.0,0.00016438,2]
[366374536,1750219842711,-490.0,0.00016438,2]
[366374537,1750219842723,-490.0,0.00016438,2]
[366374538,1750219842732,-490.0,0.00016438,2]
[366374539,1750219842742,-490.0,0.00016438,2]
[366374540,1750219842751,-1251.81,0.00016438,2]
[366374541,1750219842762,-556.23,0.00016438,2]
[366374542,1750219842772,-490.0,0.00016438,2]
[366374543,1750219842781,-490.0,0.00016438,2]
[366374544,1750219842791,-490.0,0.00016438,2]
[366374545,1750219842802,-607.21,0.00016438,2]
[366374546,1750219842812,-490.0,0.00016438,2]
[366374548,1750219842821,-1480.22,0.00016438,2]
[366374549,1750219842831,-490.0,0.00016438,2]
[366374550,1750219842840,-207.1010055,0.00016438,2]
[366374553,1750219842850,-490.0,0.00016438,2]
[366374555,1750219842859,-568.82,0.00016438,2]
[366374557,1750219842868,-490.0,0.00016438,2]
[366374560,1750219842878,-490.0,0.00016438,2]
[366374563,1750219842888,-490.0,0.00016438,2]
[366374564,1750219842897,-1685.96,0.00016438,2]
[366374565,1750219842906,-899.74,0.00016438,2]
[366374566,1750219842916,-313.47252347,0.00016438,2]
[366374567,1750219842925,-490.0,0.00016438,2]
[366374568,1750219842934,-490.0,0.00016438,2]
[366374569,1750219842943,-490.0,0.00016438,2]
[366374570,1750219842953,-490.0,0.00016438,2]
[366374571,1750219842962,-490.0,0.00016438,2]
[366374572,1750219842972,-490.0,0.00016438,2]
[366374573,1750219842982,-1576.42,0.00016438,2]
[366374574,1750219842991,-490.0,0.00016438,2]
[366374575,1750219843000,-490.0,0.00016438,2]
[366374576,1750219843010,-490.0,0.00016438,2]
[366374577,1750219843020,-876.4,0.00016438,2]
[366374578,1750219843029,-608.39,0.00016438,2]
[366374579,1750219843039,-1075.03,0.00016438,2]
[366374580,1750219843049,-603.89,0.00016438,2]
[366374581,1750219843059,-493.76417671,0.00016438,2]
[366374582,1750219843068,-490.0,0.00016438,2]
[366374583,1750219843078,-460.0,0.00016438,2]
[366374584,1750219843088,-490.0,0.00016438,2]
[366374585,1750219843097,-490.0,0.00016438,2]
[366374586,1750219843106,-490.0,0.00016438,2]
[366374587,1750219843116,-2131.18,0.00016438,2]
[366374588,1750219843125,-2448.84,0.00016438,2]
[366374589,1750219843134,-937.26,0.00016438,2]
[366374590,1750219843144,-490.0,0.00016438,2]
[366374591,1750219843153,-490.0,0.00016438,2]
[366374592,1750219843162,-692.46,0.00016438,2]
[366374593,1750219843171,-490.0,0.00016438,2]
[366374594,1750219843180,-492.15013216,0.00016438,2]
[366374595,1750219843189,-1531.94,0.00016438,2]
[366374596,1750219843199,-490.0,0.00016438,2]
[366374597,1750219843209,-490.0,0.00016438,2]
[366374598,1750219843218,-2391.1,0.00016438,2]
[366374599,1750219843227,-490.0,0.00016438,2]
[366374600,1750219843237,-490.0,0.00016438,2]
[366374601,1750219843246,-490.0,0.00016438,2]
[366374602,1750219843255,-490.0,0.00016438,2]
[366374603,1750219843264,-499.65,0.00016438,2]
[366374604,1750219843274,-490.0,0.00016438,2]
[366374605,1750219843284,-828.71,0.00016438,2]
[366374607,1750219843293,-490.0,0.00016438,2]
[366374608,1750219843302,-937.04,0.00016438,2]
[366374609,1750219843313,-490.0,0.00016438,2]
[366374610,1750219843322,-493.0722488,0.00016438,2]
[366374611,1750219843331,-490.0,0.00016438,2]
[366374612,1750219843340,-490.0,0.00016438,2]
[366374614,1750219843349,-281.09429394,0.00016438,2]
[366374615,1750219843359,-545.36,0.00016438,2]
[366374616,1750219843369,-490.0,0.00016438,2]
[366374617,1750219843379,-490.0,0.00016438,2]
[366374619,1750219843389,-174.51989682,0.00016438,2]
[366374622,1750219843398,-490.0,0.00016438,2]
[366374624,1750219843408,-1175.81,0.00016438,2]
[366374626,1750219843417,-1574.12,0.00016438,2]
[366374628,1750219843427,-592.69,0.00016438,2]
[366374630,1750219843436,-490.0,0.00016438,2]
[366374631,1750219843445,-2287.17,0.00016438,2]
[366374632,1750219843455,-490.0,0.00016438,2]
[366374633,1750219843464,-562.58,0.00016438,2]
[366374635,1750219843474,-490.0,0.00016438,2]
[366374637,1750219843483,-1000.0,0.00016438,2]
[366374639,1750219843493,-490.0,0.00016438,2]
[366374641,1750219843503,-548.72,0.00016438,2]
[366374642,1750219843513,-490.0,0.00016438,2]
[366374643,1750219843522,-490.0,0.00016438,2]
[366374644,1750219843533,-558.0,0.00016438,2]
[366374645,1750219843542,-1259.73,0.00016438,2]
[366374646,1750219843552,-1113.8,0.00016438,2]
[366374647,1750219843562,-490.0,0.00016438,2]
[366374648,1750219843572,-1285.57,0.00016438,2]
[366374649,1750219843581,-497.61,0.00016438,2]
[366374650,1750219843590,-490.0,0.00016438,2]
[366374651,1750219843600,-733.75,0.00016438,2]
[366374652,1750219843610,-490.0,0.00016438,2]
[366374653,1750219843620,-173.382791,0.00016438,2]
[366374654,1750219843629,-539.36,0.00016438,2]
[366374655,1750219843639,-490.0,0.00016438,2]
[366374656,1750219843648,-1918.62,0.00016438,2]
[366374657,1750219843657,-490.0,0.00016438,2]
[366374658,1750219843667,-583.85,0.00016438,2]
[366374659,1750219843676,-1665.59,0.00016438,2]
[366374660,1750219843685,-1623.02,0.00016438,2]
[366374661,1750219843694,-490.0,0.00016438,2]
[366374662,1750219843703,-490.0,0.00016438,2]
[366374663,1750219843713,-501.69,0.00016438,2]
[366374664,1750219843725,-1335.43,0.00016438,2]
[366374665,1750219843734,-490.0,0.00016438,2]
[366374666,1750219843744,-270.60830041,0.00016438,2]
[366374667,1750219843753,-490.0,0.00016438,2]
[366374668,1750219843763,-667.17,0.00016438,2]
[366374669,1750219843773,-636.2,0.00016438,2]
[366374670,1750219843781,-490.0,0.00016438,2]
[366374671,1750219843789,-158.4014527,0.00016438,2]
[366374672,1750219843799,-490.0,0.00016438,2]
[366374673,1750219843808,-632.5,0.00016438,2]
[366374674,1750219843817,-490.0,0.00016438,2]
[366374675,1750219843826,-490.0,0.00016438,2]
[366374676,1750219843836,-490.0,0.00016438,2]
[366374677,1750219843846,-864.12,0.00016438,2]
[366374678,1750219843856,-490.0,0.00016438,2]
[366374679,1750219843865,-1981.22,0.00016438,2]
[366374680,1750219843875,-478.41886507,0.00016438,2]
[366374681,1750219843884,-1380.2,0.00016438,2]
[366374682,1750219843894,-490.0,0.00016438,2]
[366374683,1750219843903,-510.65193408,0.00016438,2]
[366374684,1750219843913,-494.16349938,0.00016438,2]
[366374685,1750219843923,-1373.66,0.00016438,2]
[366374686,1750219843932,-490.0,0.00016438,2]
[366374687,1750219843942,-490.0,0.00016438,2]
[366374688,1750219843953,-1984.06,0.00016438,2]
[366374689,1750219843962,-1006.32,0.00016438,2]
[366374690,1750219843972,-490.0,0.00016438,2]
[366374691,1750219843981,-3129.03,0.00016438,2]
[366374692,1750219843991,-490.0,0.00016438,2]
[366374693,1750219844000,-434.80920809,0.00016438,2]
[366374694,1750219844010,-1983.52,0.00016438,2]
[366374695,1750219844019,-1157.3,0.00016438,2]
[366374696,1750219844029,-1374.35,0.00016438,2]
[366374697,1750219844038,-1095.15,0.00016438,2]
[366374698,1750219844047,-803.86,0.00016438,2]
[366374699,1750219844056,-492.70544911,0.00016438,2]
[366374700,1750219844066,-6170.72,0.00016438,2]
[366374701,1750219844075,-608.18,0.00016438,2]
[366374702,1750219844085,-1582.5,0.00016438,2]
[366374703,1750219844095,-1582.5,0.00016438,2]
[366374704,1750219844104,-1582.5,0.00016438,2]
[366374705,1750219844114,-1582.5,0.00016438,2]
[366374706,1750219844123,-1582.5,0.00016438,2]
[366374707,1750219844133,-490.0,0.00016438,2]
[366374708,1750219844142,-490.0,0.00016438,2]
[366374709,1750219844152,-490.0,0.00016438,2]
[366374710,1750219844161,-490.0,0.00016438,2]
[366374711,1750219844171,-490.0,0.00016438,2]
[366374712,1750219844181,-901.46,0.00016438,2]
[366374713,1750219844191,-1985.94,0.00016438,2]
[366374714,1750219844200,-490.0,0.00016438,2]
[366374715,1750219844210,-490.0,0.00016438,2]
[366374716,1750219844219,-2612.99,0.00016438,2]
[366374717,1750219844229,-590.95,0.00016438,2]
[366374718,1750219844239,-971.5,0.00016438,2]
[366374719,1750219844248,-781.57,0.00016438,2]
[366374720,1750219844257,-1003.97,0.00016438,2]
[366374721,1750219844267,-1259.29,0.00016438,2]
[366374722,1750219844276,-1565.28,0.00016438,2]
[366374723,1750219844286,-7839.6,0.00016438,2]
[366374724,1750219844295,-490.0,0.00016438,2]
[366374725,1750219844305,-8094.47,0.00016438,2]
[366374726,1750219844315,-1797.3,0.00016438,2]
[366374727,1750219844324,-490.0,0.00016438,2]
[366374728,1750219844334,-1149.99,0.00016438,2]
[366374729,1750219844343,-512.98803608,0.00016438,2]
[366374730,1750219844353,-1229.7,0.00016438,2]
[366374731,1750219844363,-547.6,0.00016438,2]
[366374732,1750219844373,-490.0,0.00016438,2]